bitfinex/quotes_SOLUSD_20240818
["timestamp","ask_amount","ask_price","bid_price","bid_amount"]
[1723957116604,6.3782,141.5,141.45,2.12420616]
[1723957116922,6.3782,141.5,141.44,45.37647]
[1723957117223,6.3782,141.5,141.45,2.12420537]
[1723957117426,6.3782,141.5,141.44,45.37647]
[1723957117612,6.3782,141.5,141.45,13.08315792]
[1723957117814,6.3782,141.5,141.46,2.24970704]
[1723957118016,6.3782,141.5,141.46,0.12549]
[1723957118403,6.3782,141.5,141.46,0.25098]
[1723957118819,16.6232,141.51,141.46,65.25098]
[1723957119025,16.6232,141.51,141.47,2.12401193]
[1723957119324,16.6232,141.51,141.46,65.25098]
[1723957119504,16.6232,141.51,141.47,2.12400635]
[1723957119709,16.6232,141.51,141.46,65.25098]
[1723957119922,16.6232,141.51,141.47,2.12400412]
[1723957120122,16.6232,141.51,141.47,0.12549]
[1723957120406,16.6232,141.51,141.47,0.37647]
[1723957120624,16.6232,141.51,141.48,0.12549]
[1723957127216,16.6232,141.51,141.47,0.12549]
[1723957127411,16.6232,141.51,141.46,65.0]
[1723957127629,16.6232,141.51,141.47,2.12404843]
[1723957127824,16.6232,141.51,141.43,26.29210791]
[1723957128024,16.6232,141.51,141.44,22.1242249]
[1723957128221,16.6232,141.51,141.45,2.1242249]
[1723957128518,16.6232,141.51,141.46,2.1242249]
[1723957128724,16.6232,141.51,141.44,20.0]
[1723957128923,16.6232,141.51,141.45,2.12422251]
[1723957129124,16.6232,141.51,141.46,2.12422251]
[1723957129340,16.6232,141.51,141.47,3.53770684]
[1723957129536,16.6232,141.51,141.47,1.41348433]
[1723957129848,16.6232,141.51,141.44,20.12549]
[1723957130044,16.6232,141.51,141.45,2.2497141]
[1723957130340,16.6232,141.51,141.46,2.1242241]
[1723957130545,16.6232,141.51,141.47,2.1242241]
[1723957130745,16.6232,141.51,141.45,0.12549]
[1723957131052,16.6232,141.51,141.46,2.12422171]
[1723957131341,16.6232,141.51,141.47,2.12422171]
[1723957131544,16.6232,141.51,141.48,3.53769055]
[1723957131722,16.6232,141.51,141.49,1.41322399]
[1723957132622,16.6232,141.51,141.47,9.54549]
[1723957132821,16.6232,141.51,141.48,2.24955772]
[1723957133023,16.6232,141.51,141.48,0.12549]
[1723957133325,16.6232,141.51,141.49,2.12406723]
[1723957133633,16.6232,141.51,141.48,0.12549]
[1723957133936,16.6232,141.51,141.49,2.12406786]
[1723957134130,16.6232,141.51,141.5,2.12398997]
[1723957134328,16.6232,141.51,141.48,0.25098]
[1723957134529,16.6232,141.51,141.49,2.12399046]
[1723957134738,16.6232,141.51,141.5,2.12399046]
[1723957137963,6.3431,141.53,141.5,2.12399046]
[1723957138165,6.3431,141.53,141.48,0.25098]
[1723957138334,6.3431,141.53,141.49,2.12397861]
[1723957138667,6.3431,141.53,141.5,2.1239775]
[1723957138956,6.3431,141.53,141.48,0.25098]
[1723957139160,6.3431,141.53,141.49,2.12397892]
[1723957139462,6.3431,141.53,141.5,2.12397892]
[1723957139656,6.3431,141.53,141.48,0.25098]
[1723957139832,6.3431,141.53,141.49,2.12396711]
[1723957140033,6.3431,141.53,141.5,2.12396711]
[1723957140257,6.3431,141.53,141.48,0.25098]
[1723957140458,6.3431,141.53,141.49,2.12397702]
[1723957140666,6.3431,141.53,141.5,2.12397702]
[1723957140872,6.3431,141.53,141.47,10.61988753]
[1723957141072,6.3431,141.53,141.48,2.12402115]
[1723957141237,6.3431,141.53,141.49,2.12402115]
[1723957141438,6.3431,141.53,141.5,2.12402115]
[1723957141658,6.3431,141.53,141.47,10.61988753]
[1723957141864,6.3431,141.53,141.48,2.12402354]
[1723957142176,6.3431,141.53,141.49,2.12402354]
[1723957142341,6.3431,141.53,141.5,2.12402354]
[1723957142541,6.3431,141.53,141.47,10.61988753]
[1723957142841,6.3431,141.53,141.48,2.12400179]
[1723957143167,6.3431,141.53,141.49,2.12400179]
[1723957143345,15.7631,141.53,141.5,2.12400179]
[1723957143542,15.7631,141.53,141.46,10.61988753]
[1723957143742,15.7631,141.53,141.47,2.12412728]
[1723957144064,15.7631,141.53,141.46,10.61988753]
[1723957144065,15.7631,141.53,141.48,2.12412728]
[1723957144242,15.7631,141.53,141.49,2.12412728]
[1723957144447,15.7631,141.53,141.46,10.61988753]
[1723957144772,15.7631,141.53,141.47,2.12417033]
[1723957144954,15.7631,141.53,141.48,2.12417033]
[1723957145151,20.709,141.53,141.49,2.12417033]
[1723957145356,20.709,141.53,141.46,6.25249885]
[1723957145558,20.709,141.53,141.47,2.12426008]
[1723957145760,20.709,141.53,141.48,2.12426008]
[1723957145967,20.709,141.53,141.45,10.62129556]
[1723957146164,20.709,141.53,141.46,8.37689366]
[1723957146376,20.709,141.53,141.47,2.12425927]
[1723957146552,20.709,141.53,141.48,2.12425927]
[1723957146866,20.709,141.53,141.45,10.62129556]
[1723957147066,20.709,141.53,141.46,8.37689631]
[1723957147381,20.709,141.53,141.47,2.1242598]
[1723957147566,15.8905,141.52,141.48,2.1242598]
[1723957147757,15.8905,141.52,141.45,10.62129556]
[1723957147956,15.8905,141.52,141.46,8.37690161]
[1723957148268,15.8905,141.52,141.47,2.12426268]
[1723957148452,15.8905,141.52,141.48,2.12426268]
[1723957148652,15.8905,141.52,141.45,10.62131341]
[1723957148951,15.8905,141.52,141.46,8.37689953]
[1723957149160,15.8905,141.52,141.47,2.1242606]
[1723957149372,15.8905,141.52,141.48,2.1242606]
[1723957149573,15.8905,141.52,141.45,10.62130302]
[1723957149767,15.8905,141.52,141.46,8.37691182]
[1723957149951,15.8905,141.52,141.47,2.12426185]
[1723957150274,15.8905,141.52,141.45,10.62130302]
[1723957150275,15.8905,141.52,141.48,2.12426185]
[1723957150444,15.8905,141.52,141.45,10.62130302]
[1723957150639,15.8905,141.52,141.46,8.37697195]
[1723957150844,14.3666,141.51,141.47,2.12427854]
[1723957151082,6.0306,141.5,141.48,2.12427854]
[1723957151251,6.0306,141.5,141.45,10.62130302]
[1723957151453,6.0306,141.5,141.46,2.1242943]
[1723957151659,6.0306,141.5,141.47,2.1242943]
[1723957151947,15.8905,141.48,141.44,10.62130302]
[1723957152150,9.42,141.47,141.45,2.12455401]
[1723957152375,9.42,141.47,141.38,9.42]
[1723957152376,6.0306,141.46,141.41,10.62130302]
[1723957152554,6.0306,141.46,141.42,8.37888346]
[1723957152758,6.0306,141.46,141.43,2.1247953]
[1723957153077,6.0306,141.46,141.44,2.1247953]
[1723957153285,6.0306,141.46,141.45,2.1247953]
[1723957153487,6.0306,141.46,141.41,10.62130302]
[1723957153681,6.0306,141.46,141.42,2.12482122]
[1723957153847,6.0306,141.46,141.43,2.12482122]
[1723957154179,6.0306,141.46,141.44,2.12482122]
[1723957154355,6.0306,141.46,141.42,6.25400609]
[1723957154547,6.0306,141.46,141.43,2.12474422]
[1723957154746,6.0306,141.46,141.44,2.12474422]
[1723957154975,6.0306,141.46,141.42,6.25400609]
[1723957155269,6.0306,141.46,141.43,2.12473174]
[1723957155472,6.0306,141.46,141.44,2.12473174]
[1723957155668,6.0306,141.46,141.41,10.62410613]
[1723957155866,6.0306,141.46,141.42,2.12473174]
[1723957156169,6.0306,141.46,141.43,2.12473174]
[1723957156352,6.0306,141.46,141.41,20.0]
[1723957156550,6.0306,141.46,141.42,2.12484772]
[1723957156852,6.0306,141.46,141.43,2.12484772]
[1723957157054,6.0306,141.46,141.42,1.4140251]
[1723957157272,6.0306,141.46,141.43,2.12481649]
[1723957157475,6.0306,141.46,141.42,1.4140251]
[1723957157656,6.0306,141.46,141.43,2.12479472]
[1723957157856,6.0306,141.46,141.42,1.4140251]
[1723957158074,6.0306,141.46,141.43,2.12479472]
[1723957158273,6.0306,141.46,141.42,1.4140251]
[1723957158481,6.0306,141.46,141.43,2.12479392]
[1723957158780,6.0306,141.46,141.42,1.4140251]
[1723957158977,6.0306,141.46,141.43,2.12479472]
[1723957159185,6.0306,141.46,141.42,1.4140251]
[1723957159352,6.0306,141.46,141.43,2.12479472]
[1723957159556,6.0306,141.46,141.44,2.12479472]
[1723957159873,6.0306,141.46,141.42,6.25425864]
[1723957160069,6.0306,141.46,141.43,2.12457742]
[1723957160275,6.0306,141.46,141.44,2.12457742]
[1723957160457,6.0306,141.46,141.41,37.00372224]
[1723957160654,6.0306,141.46,141.42,2.25006821]
[1723957160981,6.0306,141.46,141.43,2.12457821]
[1723957161185,6.0306,141.46,141.44,2.12457821]
[1723957161351,6.0306,141.46,141.42,0.12549]
[1723957161553,6.0306,141.46,141.43,2.12457742]
[1723957161861,6.0306,141.46,141.42,0.12549]
[1723957161862,6.0306,141.46,141.44,2.12457742]
[1723957162067,6.0306,141.46,141.42,0.12549]
[1723957162375,6.0306,141.46,141.43,2.12457582]
[1723957162553,6.0306,141.46,141.44,2.12457582]
[1723957162745,6.0306,141.46,141.42,0.12549]
[1723957162945,6.0306,141.46,141.43,2.12457582]
[1723957163252,6.0306,141.46,141.44,2.12457582]
[1723957163452,6.0306,141.46,141.42,0.12549]
[1723957163778,6.0306,141.46,141.43,2.12457582]
[1723957163976,6.0306,141.46,141.41,20.0]
[1723957164316,6.0306,141.46,141.42,2.12470863]
[1723957164475,6.0306,141.46,141.43,2.12470863]
[1723957164672,6.0306,141.46,141.41,20.0]
[1723957164851,6.0306,141.46,141.42,2.12470703]
[1723957165052,6.0306,141.46,141.43,2.12470703]
[1723957165251,6.0306,141.46,141.41,20.0]
[1723957165476,6.0306,141.46,141.42,2.12470672]
[1723957165676,6.0306,141.46,141.43,2.12470672]
[1723957165868,6.0306,141.46,141.41,20.0]
[1723957166159,6.0306,141.46,141.42,2.12470863]
[1723957166465,6.0306,141.46,141.43,2.12470863]
[1723957166668,6.0306,141.46,141.41,20.0]
[1723957166872,6.0306,141.46,141.42,2.12470832]
[1723957167059,6.0306,141.46,141.43,2.12470832]
[1723957167268,6.0306,141.46,141.41,20.0]
[1723957167466,15.8905,141.48,141.42,3.53861044]
[1723957167675,15.8905,141.48,141.43,3.53850141]
[1723957167869,15.8905,141.48,141.44,2.12470863]
[1723957168079,15.8905,141.48,141.45,3.53840009]
[1723957168288,15.8905,141.48,141.46,2.12435653]
[1723957168573,15.8905,141.48,141.45,1.41369146]
[1723957168777,15.8905,141.48,141.46,2.12433476]
[1723957169000,15.8905,141.48,141.45,1.41369146]
[1723957169167,15.8905,141.48,141.43,36.87714185]
[1723957169168,15.8905,141.48,141.46,2.12429097]
[1723957169369,15.8905,141.48,141.44,1.41369867]
[1723957169661,15.8905,141.48,141.45,2.12429177]
[1723957169866,15.8905,141.48,141.46,2.12429177]
[1723957170167,15.8905,141.48,141.44,1.41369867]
[1723957170368,15.8905,141.48,141.45,2.12430265]
[1723957170677,15.8905,141.48,141.46,2.12429097]
[1723957170884,15.8905,141.48,141.43,36.87418364]
[1723957171066,15.8905,141.48,141.44,2.1243104]
[1723957171262,15.8905,141.48,141.45,2.1243104]
[1723957171469,15.8905,141.48,141.46,2.1243104]
[1723957171683,15.8905,141.48,141.44,1.41372957]
[1723957171976,15.8905,141.48,141.45,2.12434618]
[1723957172168,15.8905,141.48,141.46,2.12434618]
[1723957172487,15.8905,141.48,141.44,1.41372957]
[1723957172688,15.8905,141.48,141.45,2.12434618]
[1723957172882,15.8905,141.48,141.46,2.12434618]
[1723957173084,15.8905,141.48,141.44,1.41372957]
[1723957173280,15.8905,141.48,141.45,2.12434459]
[1723957173487,15.8905,141.48,141.46,2.12434459]
[1723957173792,15.8905,141.48,141.44,1.41372957]
[1723957173999,15.8905,141.48,141.45,2.12434618]
[1723957174296,15.8905,141.48,141.46,2.12434618]
[1723957174497,15.8905,141.48,141.44,1.41372957]
[1723957174689,15.8905,141.48,141.45,2.12434395]
[1723957174997,15.8905,141.48,141.46,2.12434699]
[1723957175290,15.8905,141.48,141.44,1.41372957]
[1723957175592,15.8905,141.48,141.45,2.12434681]
[1723957175796,15.8905,141.48,141.44,1.41372957]
[1723957175797,15.8905,141.48,141.46,2.12434681]
[1723957176095,15.8905,141.48,141.44,1.41372957]
[1723957176270,15.8905,141.48,141.45,2.12434618]
[1723957176473,15.8905,141.48,141.46,2.12434618]
[1723957176688,15.8905,141.48,141.44,1.41372957]
[1723957176897,15.8905,141.48,141.45,2.12434465]
[1723957177202,15.8905,141.48,141.46,2.12434465]
[1723957177504,15.8905,141.48,141.44,1.41372957]
[1723957177680,15.8905,141.48,141.45,2.12430272]
[1723957177880,15.8905,141.48,141.46,3.53792691]
[1723957178081,15.8905,141.48,141.44,1.41362451]
[1723957178384,15.8905,141.48,141.45,2.12425919]
[1723957178585,15.8905,141.48,141.46,3.53788373]
[1723957178774,15.8905,141.48,141.44,1.41362452]
[1723957178980,15.8905,141.48,141.45,2.12430272]
[1723957179183,15.8905,141.48,141.46,3.53792644]
[1723957179497,15.8905,141.48,141.43,36.99976405]
[1723957179498,15.8905,141.48,141.44,1.41362461]
[1723957179680,15.8905,141.48,141.45,2.12430272]
[1723957179888,15.8905,141.48,141.46,3.53792738]
[1723957180090,15.8905,141.48,141.44,1.41362483]
[1723957180288,15.8905,141.48,141.45,2.12430272]
[1723957180489,15.8905,141.48,141.46,3.53792755]
[1723957180801,15.8905,141.48,141.47,2.12425761]
[1723957181099,15.8905,141.48,141.44,21.53911502]
[1723957181392,15.8905,141.48,141.45,2.12427858]
[1723957181594,15.8905,141.48,141.46,3.53790383]
[1723957181772,6.5343,141.5,141.47,2.12427858]
[1723957181971,6.5343,141.5,141.46,1.41362525]
[1723957182176,6.5343,141.5,141.47,2.12420884]
[1723957182480,6.5343,141.5,141.46,1.41362525]
[1723957182678,6.5343,141.5,141.47,2.12421107]
[1723957182886,6.5343,141.5,141.45,7.66628718]
[1723957183089,6.5343,141.5,141.46,3.53768832]
[1723957183290,6.5343,141.5,141.47,2.12416914]
[1723957183503,15.4928,141.51,141.48,1.41352452]
[1723957184188,15.4928,141.51,141.49,2.12400581]
[1723957184394,15.4928,141.51,141.48,1.41352452]
[1723957184595,15.4928,141.51,141.49,2.12399913]
[1723957184905,15.4928,141.51,141.47,1.41337234]
[1723957185211,15.4928,141.51,141.48,2.12399993]
[1723957185398,15.4928,141.51,141.49,2.12399993]
[1723957185600,15.4928,141.51,141.46,26.25186513]
[1723957185800,15.4928,141.51,141.47,2.12400072]
[1723957185999,15.4928,141.51,141.48,2.12400072]
[1723957186310,15.4928,141.51,141.49,2.12400072]
[1723957186493,15.4928,141.51,141.47,1.4134059]
[1723957186694,15.4928,141.51,141.48,2.12399993]
[1723957187013,15.4928,141.51,141.49,2.12399993]
[1723957187209,15.4928,141.51,141.47,1.4134059]
[1723957187414,15.4928,141.51,141.48,2.12399993]
[1723957187710,15.4928,141.51,141.49,2.12399913]
[1723957188014,15.4928,141.51,141.47,1.4134059]
[1723957188214,15.4928,141.51,141.48,2.12399993]
[1723957188395,15.4928,141.51,141.49,2.1239969]
[1723957188596,15.4928,141.51,141.47,1.4134059]
[1723957188909,15.4928,141.51,141.48,2.12399611]
[1723957189110,15.4928,141.51,141.49,2.12399611]
[1723957189324,15.4928,141.51,141.47,1.4134059]
[1723957189617,15.4928,141.51,141.48,2.12399993]
[1723957189820,15.4928,141.51,141.49,2.12399913]
[1723957189993,15.4928,141.51,141.46,26.25184725]
[1723957190315,15.4928,141.51,141.47,2.12399833]
[1723957190503,15.4928,141.51,141.48,2.12399833]
[1723957190698,15.4928,141.51,141.46,20.0]
[1723957190901,15.4928,141.51,141.47,2.1240959]
[1723957191218,15.4928,141.51,141.48,2.1240959]
[1723957191409,15.4928,141.51,141.46,20.0]
[1723957191610,15.4928,141.51,141.47,2.12408616]
[1723957191793,15.4928,141.51,141.48,2.12408616]
[1723957191994,15.4928,141.51,141.46,20.0]
[1723957192195,15.4928,141.51,141.47,2.12408775]
[1723957192394,15.4928,141.51,141.48,2.12408775]
[1723957192612,15.4928,141.51,141.46,20.0]
[1723957192821,15.4928,141.51,141.47,2.12404296]
[1723957193005,15.4928,141.51,141.48,2.12404296]
[1723957193209,15.4928,141.51,141.46,20.0]
[1723957193525,15.4928,141.51,141.47,2.1240212]
[1723957193706,15.4928,141.51,141.48,2.1240212]
[1723957193902,15.4928,141.51,141.46,20.0]
[1723957194217,15.4928,141.51,141.47,2.1240212]
[1723957194398,15.4928,141.51,141.46,20.0]
[1723957194399,15.4928,141.51,141.48,2.1240212]
[1723957194593,15.4928,141.51,141.46,20.0]
[1723957194793,15.4928,141.51,141.47,2.12404455]
[1723957195021,15.4928,141.51,141.48,2.12404455]
[1723957195203,15.4928,141.51,141.46,20.0]
[1723957195697,15.4928,141.51,141.47,2.12408807]
[1723957195917,15.4928,141.51,141.48,2.12408807]
[1723957196218,15.4928,141.51,141.46,20.0]
[1723957196521,15.4928,141.51,141.47,2.12410207]
[1723957196725,15.4928,141.51,141.48,2.12410207]
[1723957196898,15.4928,141.51,141.46,20.0]
[1723957197100,15.4928,141.51,141.47,2.1241043]
[1723957197302,15.4928,141.51,141.46,20.0]
[1723957197504,15.4928,141.51,141.47,2.12410589]
[1723957197708,15.4928,141.51,141.46,20.0]
[1723957198019,15.4928,141.51,141.47,2.12410589]
[1723957198214,15.4928,141.51,141.46,20.0]
[1723957198414,15.4928,141.51,141.47,3.53760669]
[1723957198615,15.4928,141.51,141.48,2.12410589]
[1723957198917,15.4928,141.51,141.49,3.53748522]
[1723957199118,15.4928,141.51,141.46,29.42]
[1723957199421,15.4928,141.51,141.47,3.53735139]
[1723957199593,15.4928,141.51,141.48,2.12399993]
[1723957199798,15.4928,141.51,141.47,1.41335097]
[1723957200101,15.4928,141.51,141.46,29.42]
[1723957200102,15.4928,141.51,141.48,2.12399993]
[1723957200316,6.5343,141.54,141.47,0.12549]
[1723957200625,6.5343,141.54,141.48,11.54399372]
[1723957200819,6.5343,141.54,141.49,2.12399372]
[1723957201024,6.5343,141.54,141.5,2.12399372]
[1723957201207,6.5343,141.54,141.48,9.42]
[1723957201406,6.5343,141.54,141.49,2.12382047]
[1723957201605,6.5343,141.54,141.5,2.12382047]
[1723957201805,6.5343,141.54,141.48,9.42]
[1723957202020,6.5343,141.54,141.49,2.12378643]
[1723957202212,6.5343,141.54,141.5,2.12378643]
[1723957202528,6.5343,141.54,141.48,9.42]
[1723957202729,6.5343,141.54,141.49,2.12378421]
[1723957203025,6.5343,141.54,141.5,2.12378421]
[1723957203227,6.5343,141.54,141.48,9.42]
[1723957203420,15.9543,141.54,141.49,2.12383025]
[1723957203600,15.9543,141.54,141.46,36.87129277]
[1723957203796,15.9543,141.54,141.47,2.12391581]
[1723957203997,15.9543,141.54,141.48,2.12391581]
[1723957204235,15.9543,141.54,141.46,26.25129312]
[1723957204531,15.9543,141.54,141.47,2.12399705]
[1723957204705,15.9543,141.54,141.48,2.12399705]
[1723957204905,15.9543,141.54,141.46,26.25129312]
[1723957205201,15.9543,141.54,141.47,2.1240204]
[1723957205401,15.9543,141.54,141.48,2.1240204]
[1723957205631,15.9543,141.54,141.46,20.0]
[1723957205805,15.9543,141.54,141.47,2.12404216]
[1723957206016,15.9543,141.54,141.48,2.12404216]
[1723957206198,15.9543,141.54,141.46,26.25196633]
[1723957206403,15.9543,141.54,141.47,2.12403993]
[1723957206613,15.9543,141.54,141.48,2.12403993]
[1723957206806,15.9543,141.54,141.46,26.25196875]
[1723957207011,15.9543,141.54,141.47,2.12404219]
[1723957207226,15.9543,141.54,141.48,2.12404219]
[1723957207419,15.9543,141.54,141.46,26.2519756]
[1723957207727,15.9543,141.54,141.47,2.12403996]
[1723957207902,15.9543,141.54,141.48,2.12403996]
[1723957208104,6.5343,141.54,141.48,2.12403996]
[1723957208309,6.5343,141.54,141.49,2.12403996]
[1723957208533,6.5343,141.54,141.48,9.42]
[1723957208707,6.5343,141.54,141.49,2.12389353]
[1723957209027,6.5343,141.54,141.47,51.37704587]
[1723957209212,6.5343,141.54,141.48,2.12390366]
[1723957209526,6.5343,141.54,141.49,2.12390366]
[1723957209829,6.5343,141.54,141.5,2.12389754]
[1723957210014,6.5343,141.54,141.47,71.41725683]
[1723957210205,6.5343,141.54,141.48,2.12385983]
[1723957210410,6.5343,141.54,141.49,2.12385983]
[1723957210615,6.5343,141.54,141.5,2.12385983]
[1723957210805,6.5343,141.54,141.48,12.50255493]
[1723957211117,6.5343,141.54,141.49,2.12381029]
[1723957211320,6.5343,141.54,141.5,2.12381029]
[1723957211639,6.5343,141.54,141.48,12.50255735]
[1723957211806,6.5343,141.54,141.49,2.12381067]
[1723957212005,6.5343,141.54,141.5,2.12381067]
[1723957212229,6.5343,141.54,141.48,12.50255735]
[1723957212427,6.5343,141.54,141.49,2.12380844]
[1723957212626,6.5343,141.54,141.5,2.12380844]
[1723957212825,6.5343,141.54,141.48,6.25128361]
[1723957213018,6.5343,141.54,141.49,2.12388171]
[1723957213334,6.5343,141.54,141.48,6.25128361]
[1723957213531,6.5343,141.54,141.49,2.12389117]
[1723957213730,6.5343,141.54,141.5,2.12389117]
[1723957213909,15.9543,141.54,141.46,30.74494585]
[1723957214229,15.9543,141.54,141.47,22.1240459]
[1723957214417,15.9543,141.54,141.48,2.1240459]
[1723957214621,9.42,141.52,141.49,2.12404431]
[1723957214801,9.42,141.52,141.44,10.62022156]
[1723957215007,9.42,141.52,141.45,8.37708216]
[1723957215302,9.42,141.52,141.46,2.12430954]
[1723957215505,9.42,141.52,141.47,2.12430954]
[1723957215731,9.42,141.52,141.44,10.62022156]
[1723957216025,9.42,141.52,141.45,2.12436667]
[1723957216026,6.3681,141.51,141.45,2.12436667]
[1723957216232,6.3681,141.51,141.46,2.12436667]
[1723957216401,6.3681,141.51,141.47,2.12436667]
[1723957216607,6.3681,141.51,141.48,2.12436667]
[1723957216846,6.3681,141.51,141.45,6.25273156]
[1723957217027,6.3681,141.51,141.46,2.1242903]
[1723957217236,6.3681,141.51,141.47,2.1242903]
[1723957217423,6.3681,141.51,141.48,2.1242903]
[1723957217629,6.3681,141.51,141.45,7.6664148]
[1723957217817,6.3681,141.51,141.46,3.53791319]
[1723957218138,6.3681,141.51,141.47,2.12428999]
[1723957218306,6.3681,141.51,141.48,2.12428999]
[1723957218506,6.3681,141.51,141.46,1.4136232]
[1723957218707,6.3681,141.51,141.47,2.12426697]
[1723957218907,6.3681,141.51,141.48,2.12426697]
[1723957219222,6.3681,141.51,141.46,1.41364843]
[1723957219410,6.3681,141.51,141.47,2.12423557]
[1723957219611,6.3681,141.51,141.48,2.12423557]
[1723957219935,6.3681,141.51,141.45,10.62133002]
[1723957220121,6.3681,141.51,141.46,3.53783064]
[1723957220323,6.3681,141.51,141.47,2.12423765]
[1723957220531,6.3681,141.51,141.48,2.12423765]
[1723957220730,6.3681,141.51,141.45,10.62118826]
[1723957220928,6.3681,141.51,141.46,2.12423734]
[1723957221129,6.3681,141.51,141.47,2.12423734]
[1723957221317,6.3681,141.51,141.48,2.12423734]
[1723957221514,6.3681,141.51,141.45,10.62118826]
[1723957221719,6.3681,141.51,141.46,2.12427848]
[1723957221933,6.3681,141.51,141.47,2.12427848]
[1723957222116,6.3681,141.51,141.48,2.12427848]
[1723957222316,6.3681,141.51,141.45,10.62118826]
[1723957222537,6.3681,141.51,141.46,2.12427865]
[1723957222740,6.3681,141.51,141.47,2.12423796]
[1723957222925,6.3681,141.51,141.48,2.12423796]
[1723957223127,6.3681,141.51,141.45,10.62118982]
[1723957223433,9.42,141.5,141.46,8.37658117]
[1723957223611,9.42,141.5,141.47,2.12418354]
[1723957223612,16.6331,141.49,141.47,2.12418354]
[1723957223811,16.6331,141.49,141.48,2.12418354]
[1723957224013,16.6331,141.49,141.44,10.62118982]
[1723957224215,16.6331,141.49,141.45,8.37733097]
[1723957224413,16.6331,141.49,141.46,2.12436747]
[1723957224644,16.6331,141.49,141.47,2.12436747]
[1723957224819,16.6331,141.49,141.44,10.62118982]
[1723957225021,16.6331,141.49,141.45,8.37729689]
[1723957225344,16.6331,141.49,141.46,2.12435903]
[1723957225517,16.6331,141.49,141.47,2.12435903]
[1723957225717,16.6331,141.49,141.44,10.62118982]
[1723957226020,16.6331,141.49,141.45,8.37733545]
[1723957226342,9.42,141.48,141.46,2.12436858]
[1723957226531,9.42,141.48,141.47,2.12436858]
[1723957228221,9.42,141.48,141.43,10.62118982]
[1723957228447,9.42,141.48,141.44,8.37756756]
[1723957228654,9.42,141.48,141.45,2.12442368]
[1723957228861,9.42,141.48,141.43,10.62118982]
[1723957228862,9.42,141.48,141.46,2.12442368]
[1723957229030,9.42,141.48,141.43,10.62118982]
[1723957229369,9.42,141.48,141.44,8.37756835]
[1723957229526,9.42,141.48,141.45,2.12442447]
[1723957229726,9.42,141.48,141.46,2.12442447]
[1723957229933,9.42,141.48,141.43,10.62118982]
[1723957230134,9.42,141.48,141.44,8.37756177]
[1723957230334,9.42,141.48,141.45,2.12442464]
[1723957230625,9.42,141.48,141.46,2.12442464]
[1723957230826,9.42,141.48,141.44,6.25310356]
[1723957231025,9.42,141.48,141.43,10.62212323]
[1723957231026,9.42,141.48,141.45,2.12441518]
[1723957231326,9.42,141.48,141.46,2.12441439]
[1723957231526,9.42,141.48,141.43,10.62206796]
[1723957231722,9.42,141.46,141.44,2.12441359]
[1723957231926,9.42,141.46,141.4,10.62206796]
[1723957232152,9.42,141.46,141.41,8.37921626]
[1723957232330,9.42,141.46,141.42,2.12483447]
[1723957232537,9.42,141.46,141.43,2.12483447]
[1723957232745,9.42,141.46,141.4,10.62206796]
[1723957232944,9.42,141.46,141.41,2.12486384]
[1723957233139,9.42,141.46,141.42,2.12486384]
[1723957233347,9.42,141.46,141.43,2.12486384]
[1723957233560,9.42,141.46,141.4,10.62206796]
[1723957233854,9.42,141.46,141.41,2.12483516]
[1723957234155,9.42,141.46,141.42,2.12483516]
[1723957234335,9.42,141.46,141.43,2.12483516]
[1723957234653,9.42,141.46,141.4,6.25441453]
[1723957234854,9.42,141.46,141.41,2.12484605]
[1723957235035,9.42,141.46,141.42,2.12484605]
[1723957235239,9.42,141.46,141.4,6.25441453]
[1723957235240,9.42,141.46,141.4,6.25437903]
[1723957235437,9.42,141.46,141.41,2.12483356]
[1723957235647,9.42,141.46,141.42,2.12483356]
[1723957235848,9.42,141.46,141.4,6.25437903]
[1723957236051,9.42,141.46,141.41,2.12483516]
[1723957236344,9.42,141.46,141.42,2.12483516]
[1723957236550,9.42,141.46,141.39,16.87854685]
[1723957236757,9.42,141.46,141.4,2.12484485]
[1723957236957,9.42,141.46,141.41,2.12484485]
[1723957237158,9.42,141.46,141.38,10.62416782]
[1723957237358,15.7657,141.45,141.39,2.12495198]